[Event "Early-Titled-Tuesday-Blitz-September-12-2023"]
[Site "Chess.com"]
[Date "2023.09.12"]
[Round "7"]
[White "TregubovP"]
[Black "noblerone"]
[Result "1-0"]
[WhiteElo "2653"]
[BlackElo "2527"]
[TimeControl "180+1"]
[EndTime "9:18:30 PDT"]
[Termination "TregubovP won on time"]

1. e4 {[%clk 0:03:00.9]} 1... c5 {[%clk 0:02:56.7]} 2. Nf3 {[%clk 0:02:59.6]}
2... e6 {[%clk 0:02:53.1]} 3. c3 {[%clk 0:02:58.7]} 3... Nf6 {[%clk 0:02:51.8]}
4. e5 {[%clk 0:02:57.2]} 4... Nd5 {[%clk 0:02:50.6]} 5. d4 {[%clk 0:02:57.7]}
5... cxd4 {[%clk 0:02:48.8]} 6. cxd4 {[%clk 0:02:58.6]} 6... d6 {[%clk 0:02:49]}
7. Bc4 {[%clk 0:02:57.8]} 7... Be7 {[%clk 0:02:47.5]} 8. O-O {[%clk 0:02:58.2]}
8... O-O {[%clk 0:02:44.6]} 9. Qe2 {[%clk 0:02:58.8]} 9... b6 {[%clk 0:02:43.7]}
10. Rd1 {[%clk 0:02:51.4]} 10... Nc6 {[%clk 0:02:13.9]} 11. Bxd5 {[%clk
0:02:49.4]} 11... exd5 {[%clk 0:02:13.5]} 12. Qb5 {[%clk 0:02:48.8]} 12... Bb7
{[%clk 0:01:55.7]} 13. Nc3 {[%clk 0:02:41.8]} 13... a6 {[%clk 0:01:28.8]} 14.
Qb3 {[%clk 0:02:10.2]} 14... Na5 {[%clk 0:01:22.7]} 15. Qc2 {[%clk 0:02:10.3]}
15... Rc8 {[%clk 0:01:20.2]} 16. Bf4 {[%clk 0:02:07.9]} 16... b5 {[%clk
0:01:09.5]} 17. Qf5 {[%clk 0:02:06.7]} 17... Nc4 {[%clk 0:01:06.5]} 18. b3
{[%clk 0:01:20.9]} 18... g6 {[%clk 0:00:53.4]} 19. Qh3 {[%clk 0:01:14.4]} 19...
Nb2 {[%clk 0:00:47.6]} 20. exd6 {[%clk 0:01:01.4]} 20... Bf6 {[%clk 0:00:34.5]}
21. Ne5 {[%clk 0:00:47.7]} 21... Nxd1 {[%clk 0:00:31.9]} 22. Rxd1 {[%clk
0:00:48.2]} 22... Qxd6 {[%clk 0:00:22.1]} 23. Nxg6 {[%clk 0:00:45.4]} 23... Qe6
{[%clk 0:00:21]} 24. Qxe6 {[%clk 0:00:34.3]} 24... fxe6 {[%clk 0:00:21.9]} 25.
Nxf8 {[%clk 0:00:34.8]} 25... Kxf8 {[%clk 0:00:22.1]} 26. Ne2 {[%clk 0:00:31.3]}
26... Rc2 {[%clk 0:00:20.1]} 27. Rd2 {[%clk 0:00:31.4]} 27... Rc6 {[%clk
0:00:10.5]} 28. g4 {[%clk 0:00:31.2]} 28... Kf7 {[%clk 0:00:10.4]} 29. Be5
{[%clk 0:00:27.5]} 29... Be7 {[%clk 0:00:07.5]} 30. Kg2 {[%clk 0:00:20.4]} 30...
Bb4 {[%clk 0:00:07.2]} 31. Rd3 {[%clk 0:00:21]} 31... Rc2 {[%clk 0:00:06.8]} 32.
Rf3+ {[%clk 0:00:21.1]} 32... Ke7 {[%clk 0:00:05.1]} 33. Nf4 {[%clk 0:00:17.1]}
33... Rxa2 {[%clk 0:00:03.5]} 34. Rh3 {[%clk 0:00:16.8]} 34... Bc6 {[%clk
0:00:02.6]} 35. Rxh7+ {[%clk 0:00:16.7]} 35... Ke8 {[%clk 0:00:03.3]} 36. Nxe6
{[%clk 0:00:16.1]} 36... Bd7 {[%clk 0:00:02.1]} 37. Nc7+ {[%clk 0:00:15.1]}
37... Kd8 {[%clk 0:00:02.5]} 38. Rh8+ {[%clk 0:00:14.8]} 38... Ke7 {[%clk
0:00:02.5]} 39. Nxd5+ {[%clk 0:00:14.9]} 39... Ke6 {[%clk 0:00:02.1]} 40. Nxb4
{[%clk 0:00:15.6]} 40... Rb2 {[%clk 0:00:02]} 41. Nd3 {[%clk 0:00:14.7]} 41...
Bc6+ {[%clk 0:00:02]} 42. Kg3 {[%clk 0:00:14.7]} 42... Rxb3 {[%clk 0:00:02.2]}
43. Rh6+ {[%clk 0:00:14.4]} 43... Kd5 {[%clk 0:00:01.8]} 44. Rd6+ {[%clk
0:00:13]} 44... Ke4 {[%clk 0:00:02.2]} 45. Rxc6 {[%clk 0:00:13.6]} 45... Rxd3+
{[%clk 0:00:02.5]} 46. Kh4 {[%clk 0:00:14.3]} 46... b4 {[%clk 0:00:02.7]} 47.
Rxa6 {[%clk 0:00:13.7]} 47... b3 {[%clk 0:00:02.9]} 48. Rb6 {[%clk 0:00:14.3]}
48... Rd1 {[%clk 0:00:01.2]} 49. Kg5 {[%clk 0:00:13.5]} 1-0

[Event "Early-Titled-Tuesday-Blitz-September-12-2023"]
[Site "Chess.com"]
[Date "2023.09.12"]
[Round "7"]
[White "FairChess_on_YouTube"]
[Black "Duhless"]
[Result "1-0"]
[WhiteElo "3054"]
[BlackElo "2978"]
[TimeControl "180+1"]
[EndTime "9:18:31 PDT"]
[Termination "FairChess_on_YouTube won by resignation"]

1. d4 {[%clk 0:03:00.9]} 1... Nf6 {[%clk 0:03:00.3]} 2. c4 {[%clk 0:03:00.8]}
2... g6 {[%clk 0:03:00.5]} 3. Nc3 {[%clk 0:03:00.4]} 3... d5 {[%clk 0:03:01.1]}
4. cxd5 {[%clk 0:02:57.8]} 4... Nxd5 {[%clk 0:03:00.9]} 5. e4 {[%clk 0:02:58.3]}
5... Nxc3 {[%clk 0:03:01]} 6. bxc3 {[%clk 0:02:59.2]} 6... Bg7 {[%clk
0:03:00.8]} 7. Nf3 {[%clk 0:02:59.4]} 7... c5 {[%clk 0:03:00.7]} 8. Bb5+ {[%clk
0:02:59.6]} 8... Nc6 {[%clk 0:03:00.7]} 9. O-O {[%clk 0:02:58.7]} 9... O-O
{[%clk 0:02:59.9]} 10. Bxc6 {[%clk 0:02:59]} 10... bxc6 {[%clk 0:03:00]} 11. Qc2
{[%clk 0:02:59.6]} 11... Bg4 {[%clk 0:02:11.5]} 12. Ne5 {[%clk 0:02:58.3]} 12...
Be6 {[%clk 0:02:11.3]} 13. Nxc6 {[%clk 0:02:35]} 13... Qe8 {[%clk 0:02:11.3]}
14. d5 {[%clk 0:02:22]} 14... Bd7 {[%clk 0:02:10.1]} 15. Na5 {[%clk 0:02:11.6]}
15... Ba4 {[%clk 0:02:04.4]} 16. Qd2 {[%clk 0:01:44.4]} 16... Qb5 {[%clk
0:02:01.2]} 17. Nc6 {[%clk 0:01:42.2]} 17... Qc4 {[%clk 0:01:35.2]} 18. Nxe7+
{[%clk 0:01:39.9]} 18... Kh8 {[%clk 0:01:35]} 19. d6 {[%clk 0:01:30.7]} 19...
Rad8 {[%clk 0:01:03.4]} 20. Re1 {[%clk 0:01:07.3]} 20... Qxc3 {[%clk 0:00:48.4]}
21. Qxc3 {[%clk 0:01:04.9]} 21... Bxc3 {[%clk 0:00:48.7]} 22. Bh6 {[%clk
0:01:05.5]} 22... Rfe8 {[%clk 0:00:29.3]} 23. e5 {[%clk 0:01:05.1]} 23... f6
{[%clk 0:00:22]} 24. f4 {[%clk 0:00:49.3]} 24... fxe5 {[%clk 0:00:06.6]} 25.
fxe5 {[%clk 0:00:50.2]} 25... c4 {[%clk 0:00:03.7]} 26. Bg5 {[%clk 0:00:31.6]}
26... Bd4+ {[%clk 0:00:03.2]} 27. Kh1 {[%clk 0:00:29.5]} 27... Kg7 {[%clk
0:00:04.1]} 28. Nd5 {[%clk 0:00:26.2]} 28... Bxa1 {[%clk 0:00:03.8]} 29. Rxa1
{[%clk 0:00:21.4]} 29... Rb8 {[%clk 0:00:03.5]} 30. Bf6+ {[%clk 0:00:19.7]}
30... Kh6 {[%clk 0:00:03.4]} 31. Rc1 {[%clk 0:00:17.6]} 31... c3 {[%clk
0:00:03.3]} 32. h4 {[%clk 0:00:15.1]} 32... Bd7 {[%clk 0:00:03.4]} 33. Rxc3
{[%clk 0:00:14.3]} 33... Bf5 {[%clk 0:00:03.1]} 34. Rc7 {[%clk 0:00:12.5]} 34...
Kh5 {[%clk 0:00:02.8]} 35. Ne3 {[%clk 0:00:10.2]} 35... h6 {[%clk 0:00:02.9]}
36. Nxf5 {[%clk 0:00:09.3]} 36... gxf5 {[%clk 0:00:03.8]} 37. d7 {[%clk
0:00:09.9]} 37... Rg8 {[%clk 0:00:04.7]} 38. e6 {[%clk 0:00:08.4]} 38... Rb1+
{[%clk 0:00:05.1]} 39. Kh2 {[%clk 0:00:08.7]} 39... Rb2 {[%clk 0:00:06]} 40.
Bxb2 {[%clk 0:00:08.3]} 1-0

[Event "Early-Titled-Tuesday-Blitz-September-12-2023"]
[Site "Chess.com"]
[Date "2023.09.12"]
[Round "7"]
[White "kuba2006"]
[Black "Francisco_Ferrari"]
[Result "1/2-1/2"]
[WhiteElo "2520"]
[BlackElo "2198"]
[TimeControl "180+1"]
[EndTime "9:18:31 PDT"]
[Termination "Game drawn by repetition"]

1. b3 {[%clk 0:03:00.5]} 1... d5 {[%clk 0:02:47.4]} 2. Bb2 {[%clk 0:03:01.4]}
2... e6 {[%clk 0:02:46.8]} 3. e3 {[%clk 0:03:01.7]} 3... Nf6 {[%clk 0:02:47.2]}
4. f4 {[%clk 0:03:00.9]} 4... Be7 {[%clk 0:02:47.1]} 5. Nf3 {[%clk 0:03:01.5]}
5... O-O {[%clk 0:02:47.7]} 6. Be2 {[%clk 0:03:01.7]} 6... c5 {[%clk 0:02:47.7]}
7. O-O {[%clk 0:03:02.3]} 7... Nc6 {[%clk 0:02:47.9]} 8. Bb5 {[%clk 0:03:02.9]}
8... Ne4 {[%clk 0:02:44.9]} 9. d3 {[%clk 0:02:58.2]} 9... Nd6 {[%clk 0:02:39.5]}
10. Bxc6 {[%clk 0:02:56.8]} 10... bxc6 {[%clk 0:02:35.5]} 11. Nbd2 {[%clk
0:02:57.4]} 11... Bb7 {[%clk 0:02:16.3]} 12. Qe1 {[%clk 0:02:54.4]} 12... c4
{[%clk 0:02:01.8]} 13. dxc4 {[%clk 0:02:43.9]} 13... dxc4 {[%clk 0:02:01.6]} 14.
bxc4 {[%clk 0:02:39.6]} 14... c5 {[%clk 0:01:56]} 15. Kh1 {[%clk 0:02:34]} 15...
Ba6 {[%clk 0:01:31.7]} 16. Qe2 {[%clk 0:02:08.6]} 16... Rb8 {[%clk 0:01:10.8]}
17. Bc3 {[%clk 0:02:00.5]} 17... Nf5 {[%clk 0:00:52.5]} 18. e4 {[%clk
0:01:54.7]} 18... Nd4 {[%clk 0:00:42.2]} 19. Bxd4 {[%clk 0:01:54.2]} 19... cxd4
{[%clk 0:00:42.5]} 20. Qd3 {[%clk 0:01:54.6]} 20... Bc5 {[%clk 0:00:40.4]} 21.
e5 {[%clk 0:01:49.7]} 21... Rb4 {[%clk 0:00:23.3]} 22. Ng5 {[%clk 0:01:47.5]}
22... g6 {[%clk 0:00:20]} 23. Qh3 {[%clk 0:01:41.5]} 23... h5 {[%clk 0:00:16.2]}
24. a3 {[%clk 0:01:40]} 24... Rb2 {[%clk 0:00:14]} 25. Qd3 {[%clk 0:01:37.8]}
25... Bb7 {[%clk 0:00:08.4]} 26. Nb3 {[%clk 0:01:33.1]} 26... Be7 {[%clk
0:00:08.9]} 27. Ne4 {[%clk 0:01:30.4]} 27... Qc7 {[%clk 0:00:07.5]} 28. Nxd4
{[%clk 0:01:25]} 28... Rc8 {[%clk 0:00:07.2]} 29. Nb5 {[%clk 0:01:21.7]} 29...
Qxc4 {[%clk 0:00:05.6]} 30. Qxc4 {[%clk 0:01:17.1]} 30... Rxc4 {[%clk
0:00:06.5]} 31. Ned6 {[%clk 0:00:56.6]} 31... Rcxc2 {[%clk 0:00:06]} 32. Nxb7
{[%clk 0:00:45]} 32... Rxg2 {[%clk 0:00:06.6]} 33. Rfb1 {[%clk 0:00:23.7]} 33...
Rbf2 {[%clk 0:00:06.5]} 34. N5d6 {[%clk 0:00:13.9]} 34... Bh4 {[%clk 0:00:04.6]}
35. Ne4 {[%clk 0:00:11]} 35... Rxh2+ {[%clk 0:00:04.9]} 36. Kg1 {[%clk
0:00:11.3]} 36... Rhg2+ {[%clk 0:00:05.4]} 37. Kh1 {[%clk 0:00:11.2]} 37... Re2
{[%clk 0:00:05.7]} 38. Nbd6 {[%clk 0:00:07.9]} 38... Rh2+ {[%clk 0:00:05.4]} 39.
Kg1 {[%clk 0:00:08.2]} 39... Rhg2+ {[%clk 0:00:05.7]} 40. Kf1 {[%clk 0:00:08.6]}
40... Rh2 {[%clk 0:00:06]} 41. Rb8+ {[%clk 0:00:08.5]} 41... Kg7 {[%clk
0:00:05.1]} 42. Rb7 {[%clk 0:00:09.1]} 42... Rc2 {[%clk 0:00:03.6]} 43. Rxf7+
{[%clk 0:00:09.5]} 43... Kh6 {[%clk 0:00:04.3]} 44. Kg1 {[%clk 0:00:08.8]} 44...
Rhg2+ {[%clk 0:00:04.3]} 45. Kh1 {[%clk 0:00:08.8]} 45... Rh2+ {[%clk 0:00:05]}
46. Kg1 {[%clk 0:00:09.5]} 46... Rhg2+ {[%clk 0:00:05.6]} 47. Kf1 {[%clk
0:00:10.1]} 47... Rh2 {[%clk 0:00:05.4]} 48. Kg1 {[%clk 0:00:07.3]} 1/2-1/2

[Event "Early-Titled-Tuesday-Blitz-September-12-2023"]
[Site "Chess.com"]
[Date "2023.09.12"]
[Round "7"]
[White "Akylbek2021"]
[Black "Inepton_Fermion"]
[Result "1-0"]
[WhiteElo "2310"]
[BlackElo "2346"]
[TimeControl "180+1"]
[EndTime "9:18:32 PDT"]
[Termination "Akylbek2021 won by resignation"]

1. Nf3 {[%clk 0:03:00.9]} 1... g6 {[%clk 0:02:59.6]} 2. e4 {[%clk 0:02:58]} 2...
Bg7 {[%clk 0:03:00]} 3. d4 {[%clk 0:02:53]} 3... d6 {[%clk 0:03:00.5]} 4. c4
{[%clk 0:02:48.4]} 4... a6 {[%clk 0:03:00.9]} 5. Nc3 {[%clk 0:02:48.9]} 5... c5
{[%clk 0:02:57.9]} 6. Be3 {[%clk 0:02:48.5]} 6... cxd4 {[%clk 0:02:56.2]} 7.
Bxd4 {[%clk 0:02:48.8]} 7... Nf6 {[%clk 0:02:55.1]} 8. e5 {[%clk 0:02:45]} 8...
dxe5 {[%clk 0:02:54.3]} 9. Bxe5 {[%clk 0:02:45.9]} 9... Qxd1+ {[%clk 0:02:52]}
10. Rxd1 {[%clk 0:02:46.8]} 10... Nc6 {[%clk 0:02:51.9]} 11. Nd5 {[%clk
0:02:36.1]} 11... O-O {[%clk 0:02:44.6]} 12. Bc3 {[%clk 0:02:02.3]} 12... Nxd5
{[%clk 0:02:36.8]} 13. cxd5 {[%clk 0:02:03.2]} 13... Nb8 {[%clk 0:02:16.9]} 14.
Be2 {[%clk 0:01:59.1]} 14... b6 {[%clk 0:01:58.8]} 15. O-O {[%clk 0:01:54.9]}
15... Bb7 {[%clk 0:01:57.3]} 16. Bxg7 {[%clk 0:01:43.1]} 16... Kxg7 {[%clk
0:01:57.5]} 17. d6 {[%clk 0:01:44]} 17... e6 {[%clk 0:01:46]} 18. Ne5 {[%clk
0:01:31.1]} 18... Rd8 {[%clk 0:01:43.2]} 19. Rc1 {[%clk 0:01:09.5]} 19... Nd7
{[%clk 0:01:05.3]} 20. f4 {[%clk 0:01:07]} 20... Nc5 {[%clk 0:00:59.4]} 21. b4
{[%clk 0:01:01.6]} 21... Ne4 {[%clk 0:00:59.5]} 22. Rc7 {[%clk 0:00:55.2]} 22...
Nxd6 {[%clk 0:00:58.5]} 23. Rd1 {[%clk 0:00:41.7]} 23... Bd5 {[%clk 0:00:55.6]}
24. Bf3 {[%clk 0:00:15]} 24... Rac8 {[%clk 0:00:27.6]} 25. Ra7 {[%clk
0:00:09.5]} 25... Bxf3 {[%clk 0:00:10]} 26. gxf3 {[%clk 0:00:10.4]} 26... Kg8
{[%clk 0:00:10.5]} 27. Rxa6 {[%clk 0:00:07.8]} 27... f6 {[%clk 0:00:09.6]} 28.
Ng4 {[%clk 0:00:05.8]} 28... h5 {[%clk 0:00:03.8]} 29. Nxf6+ {[%clk 0:00:05.4]}
29... Kf7 {[%clk 0:00:04.5]} 30. Ne4 {[%clk 0:00:03.4]} 30... Nxe4 {[%clk
0:00:05.2]} 31. Rxd8 {[%clk 0:00:03.7]} 31... Rxd8 {[%clk 0:00:05.7]} 32. fxe4
{[%clk 0:00:04.3]} 32... Rd4 {[%clk 0:00:05.4]} 33. Rxb6 {[%clk 0:00:03.1]}
33... Rxe4 {[%clk 0:00:05.9]} 34. a4 {[%clk 0:00:02.6]} 34... Rxf4 {[%clk
0:00:06.3]} 35. a5 {[%clk 0:00:03.1]} 35... Rf3 {[%clk 0:00:04.6]} 36. a6 {[%clk
0:00:02.6]} 36... Ra3 {[%clk 0:00:05.1]} 37. b5 {[%clk 0:00:03.1]} 37... e5
{[%clk 0:00:03.7]} 38. Rb7+ {[%clk 0:00:03.4]} 38... Ke6 {[%clk 0:00:04.2]} 39.
a7 {[%clk 0:00:04]} 39... Kd6 {[%clk 0:00:04.3]} 40. b6 {[%clk 0:00:03]} 40...
Kc6 {[%clk 0:00:04.9]} 41. Rb8 {[%clk 0:00:03.5]} 41... e4 {[%clk 0:00:03.9]}
42. Kf2 {[%clk 0:00:03.1]} 42... g5 {[%clk 0:00:03]} 43. a8=Q+ {[%clk
0:00:02.2]} 43... Rxa8 {[%clk 0:00:02.8]} 44. Rxa8 {[%clk 0:00:03.1]} 44... Kxb6
{[%clk 0:00:03.7]} 45. Rh8 {[%clk 0:00:03.4]} 45... Kb7 {[%clk 0:00:04.6]} 46.
Rxh5 {[%clk 0:00:03.3]} 46... g4 {[%clk 0:00:05.5]} 47. Ke3 {[%clk 0:00:04]} 1-0

[Event "Early-Titled-Tuesday-Blitz-September-12-2023"]
[Site "Chess.com"]
[Date "2023.09.12"]
[Round "7"]
[White "Herman-NY"]
[Black "jimmy-schlumpf"]
[Result "1-0"]
[WhiteElo "2546"]
[BlackElo "2321"]
[TimeControl "180+1"]
[EndTime "9:18:33 PDT"]
[Termination "Herman-NY won on time"]

1. e4 {[%clk 0:03:00.9]} 1... Nf6 {[%clk 0:02:59.5]} 2. e5 {[%clk 0:03:01]} 2...
Nd5 {[%clk 0:02:59.3]} 3. d4 {[%clk 0:03:01.8]} 3... d6 {[%clk 0:02:59]} 4. c4
{[%clk 0:03:02.5]} 4... Nb6 {[%clk 0:02:58.7]} 5. f4 {[%clk 0:03:03.2]} 5...
dxe5 {[%clk 0:02:57.5]} 6. fxe5 {[%clk 0:03:04.1]} 6... Bf5 {[%clk 0:02:56.6]}
7. Be3 {[%clk 0:03:04.4]} 7... e6 {[%clk 0:02:57]} 8. Nc3 {[%clk 0:03:03.9]}
8... Bb4 {[%clk 0:02:56.4]} 9. Be2 {[%clk 0:02:59.8]} 9... c5 {[%clk 0:02:55.8]}
10. dxc5 {[%clk 0:02:59.5]} 10... N6d7 {[%clk 0:02:44.2]} 11. Nf3 {[%clk
0:02:14.6]} 11... O-O {[%clk 0:02:29.3]} 12. O-O {[%clk 0:01:52.9]} 12... Bxc5
{[%clk 0:02:27.9]} 13. Bxc5 {[%clk 0:01:41.7]} 13... Nxc5 {[%clk 0:02:27.2]} 14.
Nd4 {[%clk 0:01:42.1]} 14... Bd3 {[%clk 0:02:21.7]} 15. Ndb5 {[%clk 0:01:32.5]}
15... Nc6 {[%clk 0:02:15.2]} 16. Rf3 {[%clk 0:00:55.4]} 16... Nxe5 {[%clk
0:02:07]} 17. Re3 {[%clk 0:00:50.9]} 17... Bxe2 {[%clk 0:01:21.9]} 18. Qxe2
{[%clk 0:00:50.5]} 18... Ng6 {[%clk 0:01:16.7]} 19. Rd1 {[%clk 0:00:42.8]} 19...
Qg5 {[%clk 0:01:10.4]} 20. b4 {[%clk 0:00:35.6]} 20... Na6 {[%clk 0:01:09.9]}
21. Ne4 {[%clk 0:00:27.6]} 21... Qe7 {[%clk 0:00:55.5]} 22. a3 {[%clk
0:00:25.2]} 22... b6 {[%clk 0:00:52.2]} 23. Ned6 {[%clk 0:00:20.7]} 23... Rad8
{[%clk 0:00:39.8]} 24. Red3 {[%clk 0:00:06.3]} 24... Nf4 {[%clk 0:00:35.1]} 25.
Qe5 {[%clk 0:00:03.4]} 25... Nxd3 {[%clk 0:00:32.5]} 26. Rxd3 {[%clk 0:00:04.3]}
26... Rd7 {[%clk 0:00:28.2]} 27. Rh3 {[%clk 0:00:01.5]} 27... Rfd8 {[%clk
0:00:20.2]} 28. Qh5 {[%clk 0:00:01.4]} 28... h6 {[%clk 0:00:19.6]} 29. c5 {[%clk
0:00:02.1]} 29... bxc5 {[%clk 0:00:18.6]} 30. bxc5 {[%clk 0:00:03]} 30... Nxc5
{[%clk 0:00:14.3]} 31. Qxc5 {[%clk 0:00:02.7]} 31... Rxd6 {[%clk 0:00:14.4]} 32.
Nxd6 {[%clk 0:00:03.6]} 32... Qxd6 {[%clk 0:00:13.9]} 33. Qxd6 {[%clk
0:00:03.6]} 33... Rxd6 {[%clk 0:00:13.9]} 34. Rb3 {[%clk 0:00:04.5]} 34... Ra6
{[%clk 0:00:10.8]} 35. Kf2 {[%clk 0:00:05.1]} 35... Ra4 {[%clk 0:00:10.9]} 36.
Ke3 {[%clk 0:00:05.4]} 36... g5 {[%clk 0:00:10.9]} 37. Kd3 {[%clk 0:00:05.9]}
37... Kg7 {[%clk 0:00:11.1]} 38. Kc3 {[%clk 0:00:06.8]} 38... Kg6 {[%clk
0:00:10]} 39. Kb2 {[%clk 0:00:07.7]} 39... f5 {[%clk 0:00:09.2]} 40. Rb8 {[%clk
0:00:08.2]} 40... e5 {[%clk 0:00:07.7]} 41. Rg8+ {[%clk 0:00:07.5]} 41... Kh5
{[%clk 0:00:06.6]} 42. Re8 {[%clk 0:00:06.3]} 42... e4 {[%clk 0:00:06.5]} 43.
Kb3 {[%clk 0:00:07]} 43... Rd4 {[%clk 0:00:05.4]} 44. a4 {[%clk 0:00:06.8]}
44... Rd7 {[%clk 0:00:04.5]} 45. Kb4 {[%clk 0:00:06.6]} 45... Kg4 {[%clk
0:00:04.1]} 46. Re6 {[%clk 0:00:05.2]} 46... h5 {[%clk 0:00:02.9]} 47. Kb5
{[%clk 0:00:06.1]} 47... Kf4 {[%clk 0:00:02.8]} 48. Kc6 {[%clk 0:00:06.6]} 1-0

[Event "Early-Titled-Tuesday-Blitz-September-12-2023"]
[Site "Chess.com"]
[Date "2023.09.12"]
[Round "7"]
[White "DvaHrasta"]
[Black "RandomNoob04"]
[Result "0-1"]
[WhiteElo "2483"]
[BlackElo "2635"]
[TimeControl "180+1"]
[EndTime "9:18:35 PDT"]
[Termination "RandomNoob04 won on time"]

1. c4 {[%clk 0:03:00.9]} 1... Nf6 {[%clk 0:02:58.2]} 2. g3 {[%clk 0:03:01]} 2...
e6 {[%clk 0:02:58.5]} 3. Bg2 {[%clk 0:03:01.1]} 3... d5 {[%clk 0:02:59.4]} 4.
Nf3 {[%clk 0:03:01.3]} 4... Be7 {[%clk 0:02:59.9]} 5. O-O {[%clk 0:03:01.3]}
5... O-O {[%clk 0:03:00.5]} 6. d4 {[%clk 0:03:01.5]} 6... dxc4 {[%clk
0:03:00.6]} 7. Ne5 {[%clk 0:03:01.6]} 7... Nc6 {[%clk 0:03:00.6]} 8. Bxc6 {[%clk
0:03:01.6]} 8... bxc6 {[%clk 0:03:01.5]} 9. Nxc6 {[%clk 0:03:01.9]} 9... Qe8
{[%clk 0:03:01.9]} 10. Nxe7+ {[%clk 0:03:02]} 10... Qxe7 {[%clk 0:03:02.8]} 11.
Na3 {[%clk 0:03:02.1]} 11... e5 {[%clk 0:03:00.7]} 12. dxe5 {[%clk 0:02:55.7]}
12... Qxe5 {[%clk 0:02:59.3]} 13. Nxc4 {[%clk 0:02:55.6]} 13... Qh5 {[%clk
0:02:53.7]} 14. f3 {[%clk 0:02:55.2]} 14... Bb7 {[%clk 0:02:51.1]} 15. e4 {[%clk
0:02:43.4]} 15... Rad8 {[%clk 0:02:42.2]} 16. Qb3 {[%clk 0:02:31.6]} 16... Ba6
{[%clk 0:02:36.3]} 17. Be3 {[%clk 0:02:28]} 17... Rb8 {[%clk 0:02:18.3]} 18. Qc3
{[%clk 0:02:23.9]} 18... Bxc4 {[%clk 0:02:18.8]} 19. Qxc4 {[%clk 0:02:23.4]}
19... Rxb2 {[%clk 0:02:19.4]} 20. Rf2 {[%clk 0:02:11.1]} 20... Rxf2 {[%clk
0:02:18.3]} 21. Bxf2 {[%clk 0:02:11.2]} 21... Qxf3 {[%clk 0:02:18.3]} 22. Re1
{[%clk 0:02:07.7]} 22... h5 {[%clk 0:02:03.1]} 23. Bxa7 {[%clk 0:01:52.8]} 23...
Rd8 {[%clk 0:01:58.6]} 24. Qe2 {[%clk 0:01:42.5]} 24... Qa3 {[%clk 0:01:49.9]}
25. Bf2 {[%clk 0:01:31.4]} 25... Re8 {[%clk 0:01:48.3]} 26. e5 {[%clk
0:01:20.8]} 26... Ng4 {[%clk 0:01:48.4]} 27. Bd4 {[%clk 0:01:15.5]} 27... Rd8
{[%clk 0:01:37.9]} 28. e6 {[%clk 0:01:06.7]} 28... Rxd4 {[%clk 0:01:02.8]} 29.
exf7+ {[%clk 0:01:02.6]} 29... Kh7 {[%clk 0:01:02.9]} 30. Qc2+ {[%clk
0:00:47.6]} 30... g6 {[%clk 0:00:27.7]} 31. Qxc7 {[%clk 0:00:46.9]} 31... Qf8
{[%clk 0:00:13.9]} 32. Re8 {[%clk 0:00:33.9]} 32... Rd1+ {[%clk 0:00:13.5]} 33.
Kg2 {[%clk 0:00:33.5]} 33... Rd2+ {[%clk 0:00:13.8]} 34. Kf3 {[%clk 0:00:28.6]}
34... Rf2+ {[%clk 0:00:10.5]} 35. Ke4 {[%clk 0:00:25.8]} 35... Qxf7 {[%clk
0:00:10.4]} 36. Qxf7+ {[%clk 0:00:22.3]} 36... Rxf7 {[%clk 0:00:11.3]} 37. Ra8
{[%clk 0:00:19.8]} 37... Nxh2 {[%clk 0:00:11.2]} 38. a4 {[%clk 0:00:20.1]} 38...
Nf1 {[%clk 0:00:11.4]} 39. a5 {[%clk 0:00:20.1]} 39... Nxg3+ {[%clk 0:00:11.8]}
40. Ke5 {[%clk 0:00:20.2]} 40... h4 {[%clk 0:00:11.9]} 41. a6 {[%clk 0:00:20.7]}
41... h3 {[%clk 0:00:11.9]} 42. a7 {[%clk 0:00:21.2]} 42... h2 {[%clk
0:00:06.5]} 43. Rh8+ {[%clk 0:00:15.4]} 43... Kxh8 {[%clk 0:00:06.7]} 44. a8=Q+
{[%clk 0:00:15.2]} 44... Kh7 {[%clk 0:00:06.5]} 45. Ke6 {[%clk 0:00:14.5]} 45...
h1=Q {[%clk 0:00:05.6]} 0-1